Cogmind - Beta 13 @@@ ROGUE MODE // 2024.06.11 @ 04:10:29 Player: annull Result: Destroyed by L-41 Fighter with Axe Performance ------------- Evolutions (1) 500 Regions Visited (5) 1000 Robots Destroyed (10) 50 Value Destroyed (195) 195 Prototype IDs (0) 0 Alien Tech Used (0) 0 Bonus (698) 698 TOTAL SCORE: 2443 Bonus ------- Follower Combat Kills 98 Met Imprinter 300 Was Imprinted 300 Cogmind --------- Core Integrity 0/400 Matter 300/300 Energy 100/100 System Corruption 0% Temperature Cool (0) Movement Core (50) Location -6/Proximity Caves Parts ------- > --- POWER (1) -------- (None) > --- PROPULSION (3) --- (None) > --- UTILITY (3) ------ (None) > --- WEAPON (2) ------- (None) > --- INVENTORY (5) ---- Improved Deuterium Engine Hardened Medium Armor Plating Assault Rifle Peak State ------------ > --- POWER ------------ (None) > --- PROPULSION ------- Flight Unit Flight Unit Flight Unit > --- UTILITY ---------- Sensor Array Force Booster > --- WEAPON ----------- Gauss Rifle Scythe > --- INVENTORY -------- Improved Deuterium Engine Hardened Medium Armor Plating Assault Rifle [Rating: 15] Favorites ----------- Power Light Ion Engine Engine Light Ion Engine Propulsion Flight Unit Leg Aluminum Leg Flight Unit Flight Unit Utility Sensor Array Device Sensor Array Storage Small Storage Unit Weapon Assault Rifle Ballistic Gun Assault Rifle Launcher Rocket Launcher Slashing Weapon Scythe Build | -11 -10 -9 -9 -7 -6 ------- Run | Yrd Mat Mat Min Zio Pro Slots Evolved 2 | . . 2 . . . Power . | . . . . . . Propulsion 1 | . . 1 . . . Utility 1 | . . 1 . . . Weapon . | . . . . . . Parts Attached 24 | 7 1 11 . . 5 Power 2 | 2 . . . . . Engine 2 | 2 . . . . . Core . | . . . . . . Reactor . | . . . . . . Propulsion 7 | 2 . 5 . . . Treads . | . . . . . . Leg 2 | 2 . . . . . Wheel . | . . . . . . Hover . | . . . . . . Flight 5 | . . 5 . . . Utility 6 | 1 1 2 . . 2 Device 5 | . 1 2 . . 2 Storage 1 | 1 . . . . . Processor . | . . . . . . Hackware . | . . . . . . Protection . | . . . . . . Artifact . | . . . . . . Weapon 9 | 2 . 4 . . 3 Energy Gun . | . . . . . . Energy Cannon . | . . . . . . Ballistic Gun 6 | 2 . 2 . . 2 Ballistic Cannon . | . . . . . . Launcher 2 | . . 2 . . . Special Weapon . | . . . . . . Impact Weapon . | . . . . . . Slashing Weapon 1 | . . . . . 1 Piercing Weapon . | . . . . . . Special Melee Weapon . | . . . . . . Unidentified Prototypes . | . . . . . . Parts Lost 11 | . . 5 . . 6 Power 1 | . . 1 . . . Propulsion 5 | . . 2 . . 3 Utility 2 | . . . . . 2 Weapon 3 | . . 2 . . 1 Highest Loss Streak 5 | . . 5 . . 5 To Critical Strikes . | . . . . . . Average Slot Usage (%) 77 | . 98 69 77 77 68 Engine 3 | . 14 7 . . . Leg 4 | . 28 . . . . Flight 26 | . . 32 33 33 30 Device 18 | . 12 10 22 22 21 Storage 2 | . 14 1 . . . Ballistic Gun 17 | . 28 6 22 22 6 Launcher 1 | . . 12 . . . Slashing Weapon 2 | . . . . . 9 Naked Turns 10 | . . . . . 10 Heaviest Build 13 | 12 13 13 6 6 12 Greatest Support 20 | 20 20 12 12 8 12 Greatest Overweight (x) 2 | 2 . 1 . . 1 Average Overweight (x) . | . . . . . . Largest Inventory Capacity 8 | 8 8 8 5 5 5 Average Capacity 5 | 7 8 5 5 5 5 Most Carried 8 | 5 8 8 . 2 5 Average Carried 3 | 3 7 4 . 1 3 Final Capacity 8 | 8 8 5 5 5 5 Final Carried 8 | 4 8 . . 2 3 Class Distribution -------------------- 100% | Mutant Dominant Class ---------------- Mutant | -10/Materials Mutant | -9/Materials Mutant | -9/Mines Mutant | -7/Zion Mutant | -6/Proximity Caves Resources | -11 -10 -9 -9 -7 -6 ----------- Run | Yrd Mat Mat Min Zio Pro Matter Collected 535 | 130 . 105 13 27 260 Remotely . | . . . . . . Salvage Created 223 | . 58 165 . . . Parts 19 | . 7 12 . . . Haulers Intercepted 1 | . . 1 . . . Recyclers Shooed . | . . . . . . Parts Field Recycled . | . . . . . . Retrieved Matter . | . . . . . . Parts Self-Destructed 4 | . . . . . 4 Prevented 2 | . . . . . 2 Kills | -11 -10 -9 -9 -7 -6 ------- Run | Yrd Mat Mat Min Zio Pro Combat Hostiles Destroyed 9 | . 3 6 . . . Guns 3 | . 3 . . . . AOE 6 | . . 6 . . . Classes Destroyed 4 | . 1 3 . . . Hauler 1 | . . 1 . . . Swarmer 6 | . 3 3 . . . Grunt 2 | . . 2 . . . Sentry 1 | . . 1 . . . Best Kill Streak 7 | . 3 7 . . . Combat Bots Only 6 | . 3 6 . . . Max Kills in Single Turn 4 | . 1 4 . . . Gunslinging . | . . . . . . Exploded 4 | . . 4 . . . Melee . | . . . . . . Uniques/NPCs Destroyed . | . . . . . . Combat | -11 -10 -9 -9 -7 -6 -------- Run | Yrd Mat Mat Min Zio Pro Hostile Shots Fired 103 | . 14 53 . . 36 Missed 46 | . 2 30 . . 14 Damage Taken 1019 | . 98 321 . . 600 Core 434 | . 22 86 . . 326 Absorbed by Shields . | . . . . . . Core Remaining (%) 95 | 100 91 . . . . Volleys Fired 11 | . 4 5 . . 2 Largest 2 | . 2 2 . . 1 Hottest 66 | . 40 66 . . 28 Shots Fired 20 | . 8 10 . . 2 Gun 12 | . 8 2 . . 2 Cannon . | . . . . . . Launcher 8 | . . 8 . . . Special . | . . . . . . Kinetic 12 | . 8 2 . . 2 Thermal . | . . . . . . Explosive 8 | . . 8 . . . Electromagnetic . | . . . . . . Robot Hit Streak 3 | . 3 . . . 1 Robot Miss Streak 2 | . 1 2 . . 1 Penetration Max . | . . . . . . Secondary Targets . | . . . . . . Shots Hit Robots 9 | . 6 . . . 3 Core Hits 12 | . 3 8 . . 1 Critical Kills . | . . . . . . Critical Parts Destroyed . | . . . . . . Critical Strikes 1 | . . . . . 1 Sever 1 | . . . . . 1 Melee Attacks 3 | . . . . . 3 Impact . | . . . . . . Slashing 3 | . . . . . 3 Piercing . | . . . . . . Sneak Attacks . | . . . . . . Combat Hostiles . | . . . . . . Follow-up Attacks . | . . . . . . Damage Inflicted 437 | . 71 293 . . 73 Guns 94 | . 71 14 . . 9 Cannons . | . . . . . . Explosions 279 | . . 279 . . . Melee 64 | . . . . . 64 Ramming . | . . . . . . Kinetic 94 | . 71 14 . . 9 Thermal . | . . . . . . Explosive 279 | . . 279 . . . Electromagnetic . | . . . . . . Impact . | . . . . . . Slashing 64 | . . . . . 64 Piercing . | . . . . . . Highest Corruption . | . . . . . . Average Corruption . | . . . . . . Corruption Purged . | . . . . . . Corruption Blocked . | . . . . . . Overload Shots . | . . . . . . Overflow Damage 16 | . . 16 . . . Projectiles . | . . . . . . Explosions 16 | . . 16 . . . Melee . | . . . . . . Knockbacks . | . . . . . . Impact . | . . . . . . Kinetic . | . . . . . . Secondary . | . . . . . . Self-Inflicted Damage 72 | . . 72 . . . Shots 3 | . . 3 . . . Rammed . | . . . . . . Targets Rammed . | . . . . . . Kicked . | . . . . . . Crushed . | . . . . . . Highest Temperature 9 | . . 9 . . . Average Temperature 4 | . . 4 . . . Received Heat Transfer 132 | . . 75 . . 57 Siege Activations . | . . . . . . Robots Corrupted . | . . . . . . Combat Hostiles . | . . . . . . Parts Fried . | . . . . . . Impact Corruptions . | . . . . . . Robots Melted . | . . . . . . Combat Hostiles . | . . . . . . Parts Melted . | . . . . . . Heat Transferred . | . . . . . . Parts Sabotaged . | . . . . . . Parts Stolen . | . . . . . . Parts Stripped . | . . . . . . Power Chain Reactions . | . . . . . . Alert | -11 -10 -9 -9 -7 -6 ------- Run | Yrd Mat Mat Min Zio Pro Peak Influence 420 | . 70 420 163 . . Initial 163 | . . 29 163 . . Average 101 | . 56 190 163 . . Maximum Alert Level 2 | . . 2 . . . Low Security (%) 86 | 100 100 59 100 . . Level 1 9 | . . 27 . . . Level 2 4 | . . 13 . . . Level 3 . | . . . . . . Level 4 . | . . . . . . Level 5 . | . . . . . . High Security . | . . . . . . Max Security . | . . . . . . Squads Dispatched 3 | . . 2 . . 1 Investigation 2 | . . 2 . . . Extermination . | . . . . . . Reinforcement . | . . . . . . Assault 1 | . . . . . 1 Garrison . | . . . . . . Intercept . | . . . . . . Searches Triggered . | . . . . . . Construction Impeded . | . . . . . . Haulers Reinforced . | . . . . . . Active Scanning Responses . | . . . . . . Cargo Convoy Interrupts . | . . . . . . Stealth | -11 -10 -9 -9 -7 -6 --------- Run | Yrd Mat Mat Min Zio Pro Distress Signals 1 | . . 1 . . . Communications Jammed . | . . . . . . Distress Signals . | . . . . . . Times Spotted 30 | . 3 20 . . 7 Peak Tracking Total 11 | . 3 11 . . 6 Tactical Retreats 3 | . . 3 . . . Traps | -11 -10 -9 -9 -7 -6 ------- Run | Yrd Mat Mat Min Zio Pro Traps Triggered . | . . . . . . Indirectly . | . . . . . . Trap Hack Attempts . | . . . . . . Triggered . | . . . . . . Disarmed . | . . . . . . Reprogrammed . | . . . . . . Reused . | . . . . . . Traps Extracted . | . . . . . . Installed . | . . . . . . Triggered . | . . . . . . Machines | -11 -10 -9 -9 -7 -6 ---------- Run | Yrd Mat Mat Min Zio Pro Machines Disabled 2 | . . 2 . . . Max in Single Turn 1 | . . 1 . . . Machines Repaired . | . . . . . . Machines Dismantled . | . . . . . . Machines Sabotaged . | . . . . . . Overloaded Fab Kills . | . . . . . . Hacking | -11 -10 -9 -9 -7 -6 --------- Run | Yrd Mat Mat Min Zio Pro Machines Accessed 6 | . 2 4 . . . Terminals 6 | . 2 4 . . . Fabricators . | . . . . . . Repair Stations . | . . . . . . Recycling Units . | . . . . . . Scanalyzers . | . . . . . . Garrison Access . | . . . . . . Total Hacks 17 | . 4 13 . . . Successful 5 | . 2 3 . . . Failed 12 | . 2 10 . . . Catastrophic 2 | . . 2 . . . Database Lockouts . | . . . . . . Manual 3 | . . . . 3 . Terminals 17 | . 4 13 . . . Fabricators . | . . . . . . Repair Stations . | . . . . . . Recycling Units . | . . . . . . Scanalyzers . | . . . . . . Garrison Access . | . . . . . . Terminal Hacks 5 | . 2 3 . . . Record 2 | . . 2 . . . Emergency Access Points 1 | . . 1 . . . Locate Traps 1 | . 1 . . . . Zone Layout 1 | . 1 . . . . Fabricator Hacks . | . . . . . . Repair Station Hacks . | . . . . . . Recycling Unit Hacks . | . . . . . . Scanalyzer . | . . . . . . Garrison Access Hacks . | . . . . . . Unauthorized Hacks . | . . . . . . Terminals . | . . . . . . Fabricators . | . . . . . . Repair Stations . | . . . . . . Recycling Units . | . . . . . . Scanalyzers . | . . . . . . Garrison Access . | . . . . . . Data Cores Recovered . | . . . . . . Used . | . . . . . . Hacking Detections 5 | . 1 4 . . . Full Trace Events 3 | . . 3 . . . Feedback Events . | . . . . . . Feedback Blocked . | . . . . . . Robot Schematics Acquired . | . . . . . . Robots Built . | . . . . . . Authchips . | . . . . . . Time . | . . . . . . Total Robot Build Rating . | . . . . . . Part Schematics Acquired . | . . . . . . Parts Built . | . . . . . . Authchips . | . . . . . . Time . | . . . . . . Total Part Build Rating . | . . . . . . Parts Repaired . | . . . . . . Time . | . . . . . . Parts Recycled . | . . . . . . Recycled Matter . | . . . . . . Retrieved Matter . | . . . . . . Retrieved Components . | . . . . . . Parts Scanalyzed . | . . . . . . Part Schematics Acquired . | . . . . . . Parts Damaged . | . . . . . . Bothacking | -11 -10 -9 -9 -7 -6 ------------ Run | Yrd Mat Mat Min Zio Pro Used RIF Installer . | . . . . . . Robots Hacked . | . . . . . . Non-combat . | . . . . . . Combat . | . . . . . . Robot Hacks Applied . | . . . . . . Relay Couplers Released . | . . . . . . Fabnet Peak Effective % . | . . . . . . Robots Rewired . | . . . . . . Allies Hacked . | . . . . . . Hacks Repelled . | . . . . . . Allies | -11 -10 -9 -9 -7 -6 -------- Run | Yrd Mat Mat Min Zio Pro Total Allies 4 | . . . . 4 . Largest Group 4 | . . . . 4 3 Highest-Rated Group 150 | . . . . 150 112 Highest-Rated Ally 39 | . . . . 39 39 Total Orders . | . . . . . . Ally Attacks 9 | . . . . . 9 Total Damage 325 | . . . . . 325 Kills 2 | . . . . . 2 Allies Corrupted . | . . . . . . Allies Melted . | . . . . . . Intel | -11 -10 -9 -9 -7 -6 ------- Run | Yrd Mat Mat Min Zio Pro Robot Analysis Total . | . . . . . . Derelict Logs Recovered 1 | . . . . 1 . Drone Launches . | . . . . . . Drone Recoveries . | . . . . . . Exploration | -11 -10 -9 -9 -7 -6 ------------- Run | Yrd Mat Mat Min Zio Pro Turns Passed 1633 | 113 258 221 57 673 311 Spaces Moved 2938 | 70 195 539 140 1363 631 Core 33 | 12 . . . . 21 Treads . | . . . . . . Legs 253 | 58 195 . . . . Wheels . | . . . . . . Hover . | . . . . . . Flight 2652 | . . 539 140 1363 610 Fastest Speed 34 | 50 120 34 34 37 34 Average Speed 43 | 112 120 34 36 37 35 Slowest Speed 150 | 150 120 114 37 37 100 Overloaded Moves . | . . . . . . Propulsion Burnouts . | . . . . . . Robots Hopped 6 | . . 4 . . 2 Cave-ins Triggered . | . . . . . . Exploration Rate (%) 38 | 6 28 31 41 79 45 Regions Visited 5 Branch Regions 3 Pre-discovered Areas 2 | . . . . 2 . Known Exits Taken . | . . . . . . Unknown Exits Taken 5 | 1 1 1 1 1 . Scrap Searched 4 | . . . 1 1 2 Spaces Dug 12 | . . 12 . . . Terrain Destroyed 81 | . . 81 . . . Melee . | . . . . . . Projectile . | . . . . . . AOE 81 | . . 81 . . . Terrain Rammed . | . . . . . . Walls Destroyed . | . . . . . . Machines Disabled . | . . . . . . Actions | -11 -10 -9 -9 -7 -6 --------- Run | Yrd Mat Mat Min Zio Pro Total 3270 | 105 211 567 144 1531 712 Wait 258 | 18 7 . 5 167 61 Move 2921 | 69 194 530 139 1362 627 Hop 6 | . . 4 . . 2 Pick Up 27 | 10 5 5 . 2 5 Fast Attach . | . . . . . . Attach 24 | 7 1 11 . . 5 Detach 7 | 1 . 4 . . 2 Swap . | . . . . . . Drop 13 | . . 8 . . 5 Fire 11 | . 4 5 . . 2 Melee 3 | . . . . . 3 Ram . | . . . . . . Kick . | . . . . . . Crush . | . . . . . . Escape Stasis . | . . . . . . Rewire . | . . . . . . Trap . | . . . . . . Miscellaneous . | . . . . . . Route ------- -11/Scrapyard -10/Materials -9/Materials -9/Mines -7/Zion -6/Proximity Caves History --------- Turn | Location | Event 12 | -11/Scrapyard | Discovered new exit (range 16) 114 | -11/Scrapyard | Entered Materials 316 | -10/Materials | Build established: Mutant 359 | -10/Materials | Discovered new exit (range 9) 372 | -10/Materials | Entered another Materials area 372 | -9/Materials | Evolved 2 slots: Propulsion x1, Utility x1 590 | -9/Materials | Discovered new exit (range 10) 593 | -9/Materials | Entered Mines 605 | -9/Mines | Lost 5 parts (1p2n2w) 647 | -9/Mines | A Derelict revealed a hidden shortcut to a safe place 650 | -9/Mines | Entered Zion 868 | -7/Zion | Received a visual enhancement algorithm 999 | -7/Zion | Imprinted 1001 | -7/Zion | Declared Zion's savior 1245 | -7/Zion | Discovered new exit (range 16) 1323 | -7/Zion | Entered Proximity Caves 1323 | -6/Proximity Caves | Accompanied by 3 allies 1609 | -6/Proximity Caves | Attracted the attention of an 0b10 outpost 1627 | -6/Proximity Caves | Core integrity fell below 50% 1633 | -6/Proximity Caves | Core integrity fell below 20% 1634 | -6/Proximity Caves | Destroyed by L-41 Fighter with Axe Last Messages --------------- 01474_ Acquired 76 matter. 01475_ Acquired 62 matter. 01492_ Slug penetrates Wall. 01502_ Acquired 4 matter. 01540_ QK-9DR(k) breaks down the debris. 01608_ Penetrated by Slug. 01608_ Flight Unit destroyed. 01608_ Dropped Sensor Array. 01609_ Y-64 Sentinel: "DETECTED UNIDENTIFIED DERELICT." 01609_ Dropped Gauss Rifle. 01611_ Scythe destroyed. 01611_ Penetrated by Slug. 01612_ Flight Unit destroyed. 01613_ Y-64 Sentinel: "REQUESTING BACKUP." 01614_ Penetrated by Slug. 01623_ Slug penetrates Wall. 01624_ Force Booster destroyed. 01626_ Penetrated by Slug. 01631_ B-48 Gladiator suffers critical hit (Burn). 01631_ Penetrated by Slug. Map ----- +----------------------------------------------------+ | ?????????????????????????????????????????????????? | | ?????????????????????????????????????????????????? | | ?????????????????????????????????????????????????? | | ?????????????????????????????????????????????????? | | ?????????????????????????????????????????????????? | | ?????????????????????????????????????????????????? | | ?????????????????????????????????????????????????? | | ?????????????????????????????????????????????????? | | ?????????????????????????????????????????????????? | | ?????????????????????????????????????????????????? | | ?????????????????????????????????????????????????? | | ?????????????????????????????????????????????????? | | ?????????????????????????????????????????????????? | | ?????????????????????????????????????????????????? | | ?????????????????????????????????????????????????? | | ?????????????????????????????????????????????????? | | ?????????????????????#####???????????????????????? | | ?????????????????????# ## ###???######???????????? | | ??????????????????#### #??? ### ??????? | | ??????????????????# ##?# ??????? | | ??????????????????# ### ### ?????? | | ??????????????????# ##; ????? | | ?????????????????## ## ## #????? | | ????????????????## ### #????? | | ????????????????# lbl ### #?????? | | ????????????????# @ ## ##????? | | ????????????????## lY ?????? | | ?????????????????# #??????? | | ?????????????????# ### ### #??????? | | ?????????????????## #" # #??????? | | ??????????????????##### #" # #??????? | | ??????????????????????# #" # #???????? | | ??????????????????????# #" ## ##???????? | | ??????????????????????# #" # ! ####?????? | | ??????????????????????# #""""""# [ ## ##????? | | ??????????????????????# ######## ##???? | | ??????????????????????# ##??? | | ??????????????????????## #### ### #??? | | ??????????????????????## ##??## ##?? | | ?????????????????????## #???# #?? | | ?????????????????????# #???##### ## #?? | | ?????????????????????## ##???????####### ##?? | | ??????????????????????## ##??????????????# #??? | | ??????????????????????## ##???????######### ##?# | | ??????????????????????# #???????## ## ### | | ??????????????????????## #???????# | | ???????????????????????# ######### | | ???????????????????????# | | ???????????????????????# ###### | | ???????????????????????###############????# | +----------------------------------------------------+ Best States ------------- Heat Dissipation 28 Energy Generation 10 Energy Capacity 125 Matter Stores 300 Matter Capacity 300 Sight Range 16 Robot Scan Range 14 Terrain Scan Density 10 Evasion (%) 63 Force Boost 20 Item Schematics ----------------- None Robot Schematics ------------------ None Fabricated ------------ Nothing Alien Tech Used ----------------- None Achievements -------------- Loot Pinata Robot Respite The One Tourist Challenges ------------ None Game ------ Seed ExoskeletonSlugBoomstick Manual? 0 Play Time 01:05:25 Cumulative 3.0 hours Start 2024.06.10 @ 01:02:54 End 2024.06.11 @ 04:10:29 Sessions 4 Manual Loads 0 Difficulty Rogue Special Mode None Game No. 4 Rogue 4 Adventurer 0 Explorer 0 Win Type - Total 0 Types 0/0/0/0/0/0/0/0/0 Lore% 3 Gallery% 2 Achievement% 4 Wizard Run 0 Options --------- Layout 0 ASCII 1 Keyboard 0 Movement Arrows Keybinds 0 Fullscreen 2 Font 18/TerminusBold Map View 38x25 Zoom Use 72% Tactical HUD 1 Map Filters NONE Filters NONE Steam 1 RUN: 80a8a938-f795-4da8-87ea-275761eaec7e